fUSD/lending_fUSD_20260305
["ID","MTS","AMOUNT","RATE_DAILY","PERIOD"]
[407735274,1772717446741,-500.0,0.00018532,2]
[407735275,1772717446751,-500.0,0.00018532,2]
[407735276,1772717446760,-222.13302261,0.00018532,2]
[407735277,1772717446770,-500.0,0.00018532,2]
[407735278,1772717446779,-500.0,0.00018532,2]
[407735279,1772717446789,-500.0,0.00018532,2]
[407735280,1772717446799,-500.0,0.00018532,2]
[407735281,1772717446809,-500.0,0.00018532,2]
[407735282,1772717446818,-500.0,0.00018532,2]
[407735283,1772717446827,-500.0,0.00018532,2]
[407735284,1772717446836,-152711.28,0.00018533,2]
[407735285,1772717446845,-150.99,0.00018533,2]
[407735286,1772717446855,-150.99,0.00018533,2]
[407735287,1772717446867,-299.99,0.00018533,4]
[407735288,1772717446877,-9999.99,0.00018533,2]
[407735289,1772717446886,-862.28603014,0.00018541,2]
[407735290,1772717446896,-894.19061326,0.00018596,2]
[407735291,1772717446906,-2862.02474929,0.00018606,2]
[407735292,1772717446916,-171.85,0.0001865,2]
[407735293,1772717446925,-927.27566595,0.00018651,2]
[407735294,1772717446935,-338.0,0.00018663,2]
[407735295,1772717446946,-961.58486559,0.00018706,2]
[407735296,1772717446955,-378.31004019,0.00018736,2]
[407735297,1772717446964,-181.08010149,0.00018759,2]
[407735298,1772717446974,-997.16350561,0.00018761,2]
[407735299,1772717446983,-372.0,0.00018954,2]
[407735300,1772717446995,-566.0,0.00019,2]
[407735301,1772717447005,-250.0,0.00019038,2]
[407735302,1772717447015,-1680.0,0.00019045,2]
[407735303,1772717447024,-338.0,0.00019097,2]
[407735304,1772717447034,-200.0,0.00019109,2]
[407735305,1772717447044,-168.0,0.00019187,2]
[407735306,1772717447053,-2000.0,0.000192,2]
[407735307,1772717447063,-636.0,0.00019205,2]
[407735308,1772717447073,-168.0,0.00019261,2]
[407735309,1772717447083,-187.78006525,0.00019307,2]
[407735310,1772717447093,-500.0,0.00019308,2]
[407735311,1772717447103,-152.04,0.00019312,2]
[407735312,1772717447112,-304.0,0.000194,2]
[407735313,1772717447121,-439.0,0.000194,2]
[407735314,1772717447131,-310.0,0.000194,2]
[407735315,1772717447140,-168.0,0.00019525,2]
[407735316,1772717447150,-721.18,0.00019531,2]
[407735317,1772717447159,-168.0,0.00019568,2]
[407735318,1772717447168,-1089.20327824,0.000196,2]
[407735319,1772717447177,-168.0,0.00019677,2]
[407735320,1772717447186,-168.0,0.00019802,2]
[407735321,1772717447196,-200.0,0.00019831,2]
[407735322,1772717447205,-200.0,0.00019839,2]
[407735323,1772717447215,-194.72792766,0.00019855,2]
[407735324,1772717447224,-500.0,0.00019888,2]
[407735325,1772717447234,-220.56274685,0.00019899,2]
[407735326,1772717447249,-709.23349734,0.000199,2]
[407735327,1772717447259,-500.0,0.00019981,2]
[407735328,1772717447269,-150.01031058,0.00019981,2]
[407735329,1772717447279,-373.06894908,0.00019981,2]
[407735330,1772717447289,-500.0,0.00019981,2]
[407735331,1772717447299,-500.0,0.00019981,2]
[407735332,1772717447310,-620.66289562,0.00019981,2]
[407735333,1772717447319,-455.53067171,0.00019981,2]
[407735334,1772717447329,-217.14939422,0.00019981,2]
[407735335,1772717447356,-282.85060578,0.00019981,2]
[407735336,1772717447366,-440.66899422,0.00019981,2]
[407735337,1772717447378,-59.33100578,0.00019981,2]
[407735338,1772717447387,-32283.10000831,0.00019982,2]
[407735339,1772718338792,2238.08,0.00014626,2]
[407735340,1772718384135,303.11494295,0.00014605,2]
[407735341,1772718446924,172.64,0.00013865,2]
[407735342,1772718631653,-166.66,0.00016718,2]
[407735343,1772718631662,-942.58731293,0.00016753,2]
[407735344,1772718631674,-1205.51796052,0.00016753,2]
[407735345,1772718631684,-300.0,0.00016789,2]
[407735346,1772718631693,-1200.0,0.00016789,2]
[407735347,1772718631702,-250.0,0.0001679,2]
[407735348,1772718631712,-275.21,0.0001679,2]
[407735349,1772718631722,-250.0,0.0001683,2]
[407735350,1772718631731,-157.674214,0.00016977,7]
[407735351,1772718631740,-171.6339,0.00017,2]
[407735352,1772718631750,-171.6339,0.00017,2]
[407735353,1772718631765,-171.6339,0.00017,2]
[407735354,1772718631774,-171.6339,0.00017,2]
[407735355,1772718631785,-171.6339,0.00017,2]
[407735356,1772718631795,-171.6339,0.00017,2]
[407735357,1772718631805,-275.21,0.0001706,2]
[407735358,1772718631814,-166.66,0.0001707,2]
[407735359,1772718631824,-150.0,0.0001716,2]
[407735360,1772718631833,-776.17272548,0.00017161,2]
[407735361,1772718631847,-994.88176241,0.00017161,2]
[407735362,1772718631869,-41875.54461211,0.00017161,2]
[407735363,1772718631879,-151.0,0.0001725,2]
[407735364,1772718631888,-151.0,0.0001725,2]
[407735365,1772718631898,-151.0,0.0001725,2]
[407735366,1772718631907,-338.41204958,0.0001725,2]
[407735367,1772718631916,-151.0,0.0001725,2]
[407735368,1772718631926,-151.0,0.0001725,2]
[407735369,1772718631936,-151.0,0.0001725,2]
[407735370,1772718631946,-151.0,0.0001725,2]
[407735372,1772718631955,-151.0,0.0001725,2]
[407735374,1772718631964,-151.0,0.0001725,2]
[407735377,1772718631973,-151.0,0.0001725,2]
[407735380,1772718631982,-151.0,0.0001725,2]
[407735382,1772718631991,-500.0,0.0001725,2]
[407735384,1772718632001,-275.21,0.0001733,2]
[407735386,1772718632010,-660.0,0.00017344,2]
[407735388,1772718632020,-150.0,0.00017377,2]
[407735390,1772718632029,-210.0,0.00017421,2]
[407735392,1772718632039,-166.66,0.00017422,2]
[407735394,1772718632050,-735.93,0.00017428,2]
[407735396,1772718632060,-515.0,0.00017443,2]
[407735397,1772718632069,-256.0,0.00017488,2]
[407735398,1772718632078,-447.0,0.00017497,2]
[407735399,1772718632087,-1135.3084376,0.000175,2]
[407735400,1772718632096,-400.0,0.00017503,2]
[407735401,1772718632106,-433.0,0.00017523,2]
[407735402,1772718632116,-380.0,0.00017524,2]
[407735403,1772718632125,-150.0,0.00017533,2]
[407735404,1772718632134,-407.0,0.00017559,2]
[407735405,1772718632144,-275.21,0.000176,2]
[407735406,1772718632153,-166.66,0.00017773,2]
[407735407,1772718632162,-912.1401321,0.00017808,2]
[407735408,1772718632171,-275.21,0.0001787,2]
[407735409,1772718632180,-166.66,0.00018125,2]
[407735410,1772718632190,-275.21,0.0001814,2]
[407735411,1772718632199,-1000.0,0.00018193,2]
[407735412,1772718632209,-258.55,0.00018234,2]
[407735413,1772718632223,-789.4132,0.00018333,2]
[407735414,1772718632232,-420.0,0.00018341,2]
[407735415,1772718632242,-796.30817057,0.00018356,2]
[407735416,1772718632253,-578.20924308,0.00018387,2]
[407735417,1772718632262,-721.12765535,0.00018387,2]
[407735418,1772718632272,-693.3919763,0.00018387,2]
[407735419,1772718632282,-174.61919141,0.00018387,2]
[407735420,1772718632293,-262.90206542,0.00018387,2]
[407735421,1772718632302,-2500.0,0.00018389,2]
[407735422,1772718632311,-275.21,0.0001841,2]
[407735423,1772718632321,-1000.0,0.00018432,2]
[407735424,1772718632330,-1680.0,0.00018433,2]
[407735425,1772718632340,-32898.3261,0.00018433,2]
[407735426,1772718632349,-719.04747942,0.00018442,2]
[407735427,1772718632359,-300.0,0.00018468,2]
[407735428,1772718632369,-250.0,0.00018468,2]
[407735429,1772718632378,-166.66,0.00018477,2]
[407735430,1772718632387,-745.65223616,0.00018497,2]
[407735431,1772718632397,-500.0,0.00018533,2]
[407735432,1772718632407,-150.99,0.00018533,2]
[407735433,1772718632416,-9999.99,0.00018533,2]
[407735434,1772718632426,-299.99,0.00018533,4]
[407735435,1772718632436,-773.2413689,0.00018552,2]
[407735436,1772718632445,-801.85129955,0.00018607,2]
[407735437,1772718632455,-831.51979763,0.00018662,2]
[407735438,1772718632464,-275.21,0.0001868,2]
[407735439,1772718632473,-2416.995,0.00018708,2]
[407735440,1772718632483,-162.603,0.00018708,2]
[407735441,1772718632492,-862.28603014,0.00018717,2]
[407735442,1772718632501,-230.90170864,0.00018769,2]
[407735443,1772718632511,-894.19061326,0.00018772,2]
[407735444,1772718632521,-927.27566595,0.00018827,2]
[407735445,1772718632531,-961.58486559,0.00018882,2]
[407735446,1772718632540,-181.08010149,0.00018935,2]
[407735447,1772718632550,-304.02480851,0.00018935,2]
[407735448,1772718632559,-997.16350561,0.00018937,2]
[407735449,1772718632569,-275.21,0.0001895,2]
[407735450,1772718632578,-500.0,0.0001896,2]
[407735451,1772718632588,-258.55,0.00019146,2]
[407735452,1772718632597,-2000.0,0.000192,2]
[407735453,1772718632608,-275.21,0.0001922,2]
[407735454,1772718632617,-200.0,0.00019429,2]
[407735455,1772718632627,-187.78006525,0.00019483,2]
[407735456,1772718632637,-275.21,0.0001949,2]
[407735457,1772718632647,-8706.01014938,0.00019547,2]
[407735458,1772718632657,-304.0,0.000196,2]
[407735459,1772718632666,-310.0,0.000196,2]
[407735460,1772718632676,-298.50412498,0.00019644,2]
[407735461,1772718632685,-63956.9079297,0.00019647,2]
[407735462,1772718632694,-4834.1960391,0.00019647,2]
[407735463,1772718632704,-168.0,0.00019653,2]
[407735464,1772718632714,-700.0,0.00019676,2]
[407735465,1772718632724,-275.21,0.0001976,2]
[407735466,1772718632734,-500.0,0.00019822,2]
[407735467,1772718632743,-500.0,0.00019831,2]
[407735468,1772718632753,-200.0,0.00019831,2]
[407735469,1772718632764,-500.0,0.00019839,2]
[407735470,1772718632774,-200.0,0.00019839,2]
[407735471,1772718632784,-4179.33658677,0.00019882,2]
[407735472,1772718632793,-2097.89156733,0.00019882,2]
[407735473,1772718632804,-494.17165058,0.000199,8]
[407735474,1772718632815,-1134.39463278,0.000199,8]
[407735475,1772718632825,-1774.61761498,0.000199,8]
[407735476,1772718632834,-2036.24094893,0.000199,8]
[407735477,1772718632844,-2414.84059718,0.000199,8]
[407735478,1772718632854,-1602.09251198,0.000199,8]
[407735479,1772718632863,-1033.1846001,0.000199,2]
[407735480,1772718632874,-160.0,0.00019938,2]
[407735481,1772718632884,-500.0,0.0001997,2]
[407735482,1772718632893,-705.36622926,0.0001997,2]
[407735483,1772718632903,-1132.047401,0.0001997,2]
[407735484,1772718632913,-1000.0,0.0001997,2]
[407735485,1772718632922,-500.0,0.0001997,2]
[407735486,1772718632931,-425.29200088,0.00019976,2]
[407735487,1772718632940,-349.05552005,0.00019976,2]
[407735488,1772718632949,-500.0,0.00019976,2]
[407735489,1772718632959,-249.21014197,0.00019976,2]
[407735490,1772718632970,-286.57381537,0.00019976,2]
[407735491,1772718632979,-256.08635566,0.00019976,2]
[407735492,1772718632989,-164.92083678,0.00019976,2]
[407735493,1772718633002,-335.07916322,0.00019976,2]
[407735494,1772718633011,-500.0,0.00019976,2]
[407735495,1772718633020,-500.0,0.00019976,2]
[407735496,1772718633030,-500.0,0.00019976,2]
[407735497,1772718633039,-500.0,0.00019976,2]
[407735498,1772718633048,-500.0,0.00019976,2]
[407735499,1772718633058,-500.0,0.00019976,2]
[407735500,1772718633067,-500.0,0.00019976,2]
[407735501,1772718633076,-500.0,0.00019976,2]
[407735502,1772718633086,-500.0,0.00019976,2]
[407735503,1772718633096,-500.0,0.00019976,2]
[407735504,1772718633106,-500.0,0.00019976,2]
[407735505,1772718633115,-500.0,0.00019976,2]
[407735506,1772718633125,-500.0,0.00019976,2]
[407735507,1772718633135,-500.0,0.00019976,2]
[407735508,1772718633144,-500.0,0.00019976,2]
[407735509,1772718633153,-173.05794172,0.00019976,2]
[407735510,1772718633162,-500.0,0.00019976,2]
[407735511,1772718633172,-500.0,0.00019976,2]
[407735512,1772718633181,-500.0,0.00019976,2]
[407735513,1772718633190,-500.0,0.00019976,2]
[407735514,1772718633199,-500.0,0.00019976,2]
[407735515,1772718633208,-500.0,0.00019976,2]
[407735516,1772718633222,-500.0,0.00019976,2]
[407735517,1772718633231,-500.0,0.00019976,2]
[407735518,1772718633240,-500.0,0.00019976,2]
[407735519,1772718633249,-500.0,0.00019976,2]
[407735520,1772718633260,-500.0,0.00019976,2]
[407735521,1772718633269,-500.0,0.00019976,2]
[407735522,1772718633278,-500.0,0.00019976,2]
[407735523,1772718633289,-500.0,0.00019976,2]
[407735524,1772718633298,-500.0,0.00019976,2]
[407735525,1772718633307,-500.0,0.00019976,2]
[407735526,1772718633316,-500.0,0.00019976,2]
[407735527,1772718633326,-500.0,0.00019976,2]
[407735528,1772718633336,-499.99999999,0.00019976,2]
[407735529,1772718633345,-214.78,0.0001998,2]
[407735530,1772718633354,-500.0,0.00019981,2]
[407735531,1772718633364,-297.70153382,0.00019981,2]
[407735532,1772718633374,-500.0,0.00019981,2]
[407735533,1772718633383,-32419.14020377,0.00019982,2]
[407735534,1772718633395,-52490.71591602,0.00019982,2]
[407735535,1772718633403,-21414.06283108,0.00019982,2]
[407735536,1772718633428,-1571.96416629,0.00019982,2]
[407735537,1772718633440,-800.0,0.00019982,2]
[407735538,1772718633451,-979.22385523,0.00019982,2]
[407735539,1772718633460,-1215.94499644,0.00019982,2]
[407735540,1772718633469,-232.3485687,0.0001999,2]
[407735541,1772718633477,-1502.53,0.0001999,2]
[407735542,1772718633486,-980.42892825,0.0001999,2]
[407735547,1772718638122,-446.67204963,0.00019547,2]
[407735548,1772718638180,-553.32795037,0.00019547,2]
[407735549,1772718638190,-69.41209291,0.00019999,2]
[407735550,1772718638202,-430.58790709,0.00019999,2]
[407735551,1772718638214,-500.0,0.00019999,2]
[407735552,1772718638224,-500.0,0.00019999,2]
[407735553,1772718638234,-500.0,0.00019999,2]
[407735554,1772718638244,-155.0,0.00019999,2]
[407735555,1772718638254,-488.21721741,0.00019999,2]
[407735556,1772718638263,-500.0,0.00019999,2]
[407735557,1772718638272,-284.46402693,0.00019999,2]
[407735558,1772718638282,-3472.0,0.0002,2]
[407735559,1772718638293,-1520.72869962,0.0002,2]
[407735560,1772718638304,-339.88265974,0.0002,2]
[407735561,1772718638324,-911.38864064,0.0002,2]
[407735562,1772718638333,-2829.0,0.0002,2]
[407735563,1772718638342,-8194.73051584,0.0002,2]
[407735564,1772718638353,-6275.55825757,0.0002,2]
[407735566,1772718639404,163.75,9.968e-05,2]
[407735567,1772718639625,163.75,0.00011214,2]
[407735568,1772718639814,163.75,0.0001246,2]
[407735569,1772718639867,-1279.56,0.0002,2]
[407735571,1772718639930,-409.35726536,0.0002,2]
[407735572,1772718640012,163.75,0.00013706,2]
[407735573,1772718640423,163.75,0.00014951,2]
[407735574,1772718640646,163.75,0.00016197,2]
[407735615,1772718646798,-163.75,0.00017443,2]
[407735616,1772718646808,-163.75,0.00018689,2]
[407735617,1772718646817,-163.75,0.00019935,2]
[407735618,1772718646827,-308.885,0.0002,2]
[407735619,1772718647153,-37992.8608082,0.0002,2]
[407735620,1772718647165,-484628.95734386,0.0002,2]
[407735621,1772718647180,-422.8,0.0002,2]
[407735622,1772718647192,-6247.23489327,0.0002,2]
[407735625,1772719194033,309.52913812,9.95e-05,2]
[407735634,1772719250958,250.0,0.00015,2]
[407735635,1772719252542,5000.0036252,0.000162,5]
[407735636,1772719252896,200.0,0.00015995,2]
[407735647,1772719460812,200.0,0.00016,2]
[407735649,1772719461624,204.864366,0.00014,2]
[407735657,1772719540177,-289.0,0.0001649,2]
[407735681,1772719771938,29.58422049,0.00016369,2]
[407735693,1772719831753,-600.0,0.00016369,2]
[407735695,1772719831766,-750.7917989,0.00016369,2]
[407735696,1772719831819,-1168.12398061,0.00016369,2]
[407735697,1772719831828,-1200.0,0.00016597,2]
[407735698,1772719831838,-300.0,0.00016597,2]
[407735699,1772719831848,-19039.55188266,0.00016598,2]
[407735700,1772719831860,-96432.67498361,0.00016598,2]
[407735701,1772719831870,-166.90784037,0.00016608,2]
[407735702,1772719831879,-157.41,0.00016708,2]
[407735703,1772719831889,-500.0,0.00016769,2]
[407735704,1772719831899,-198.61,0.0001679,2]
[407735705,1772719831909,-150.0,0.0001683,30]
[407735706,1772719831918,-203.71,0.00016902,2]
[407735707,1772719831932,-496.46,0.00016904,2]
[407735708,1772719831942,-8187.77299903,0.0001696,2]
[407735709,1772719831952,-1975.28661837,0.0001699,2]
[407735710,1772719831962,-161870.99996596,0.00017,2]
[407735711,1772719831972,-1835.65512144,0.00017025,2]
[407735712,1772719831982,-1005.94,0.0001705,2]
[407735713,1772719831993,-151.0,0.00017051,2]
[407735715,1772719832002,-151.0,0.00017051,2]
[407735718,1772719832012,-151.0,0.00017051,2]
[407735721,1772719832021,-151.0,0.00017051,2]
[407735724,1772719832030,-151.0,0.00017051,2]
[407735726,1772719832040,-151.0,0.00017051,2]
[407735727,1772719832050,-151.0,0.00017051,2]
[407735728,1772719832059,-1005.94,0.00017051,2]
[407735729,1772719832069,-1005.94,0.00017051,2]
[407735730,1772719832079,-500.0,0.0001706,2]
[407735731,1772719832089,-500.0,0.0001706,2]
[407735732,1772719832098,-500.0,0.0001706,2]
[407735733,1772719832108,-500.0,0.0001706,2]
[407735734,1772719832118,-500.0,0.0001706,2]
[407735735,1772719832130,-500.0,0.0001706,2]
[407735736,1772719832139,-500.0,0.0001706,2]
[407735737,1772719832149,-500.0,0.0001706,2]
[407735738,1772719832159,-515.50068087,0.0001706,2]
[407735739,1772719832168,-500.0,0.0001706,2]
[407735740,1772719832179,-500.0,0.0001706,2]
[407735741,1772719832188,-500.0,0.0001706,2]
[407735742,1772719832198,-500.0,0.0001706,2]
[407735743,1772719832207,-500.0,0.0001706,2]
[407735744,1772719832217,-500.0,0.0001706,2]
[407735745,1772719832226,-500.0,0.0001706,2]
[407735746,1772719832236,-500.0,0.0001706,2]
[407735747,1772719832246,-500.0,0.0001706,2]
[407735748,1772719832255,-500.0,0.0001706,2]
[407735749,1772719832265,-500.0,0.0001706,2]
[407735750,1772719832274,-1483.15594492,0.0001706,5]
[407735751,1772719832284,-500.0,0.0001706,2]
[407735752,1772719832293,-198.61,0.0001706,2]
[407735753,1772719832302,-8758.84829409,0.00017061,2]
[407735754,1772719833556,-2902.80603546,0.00017061,2]
[407735755,1772719833567,-34879.21735543,0.00017061,2]
[407735757,1772719837815,-200.0,0.00016292,2]
[407735758,1772719837824,-69.74800077,0.00017061,2]
[407735759,1772719837835,-5329.6013806,0.00017061,2]
[407735760,1772719837870,-426.61846658,0.00017061,2]
[407735761,1772719837984,-435.21508418,0.00017061,2]
[407735773,1772719839987,-103383.4513874,0.00017061,2]
[407735774,1772719840051,-2366.68614977,0.00017061,2]
[407735779,1772719844869,-2112.52963953,0.00017061,2]
[407735801,1772720880427,398.83387721,0.00016289,2]
[407735802,1772721031952,-199.18,0.0001679,2]
[407735803,1772721031963,-302.35737128,0.00016797,2]
[407735804,1772721031973,-3144.41350716,0.00016797,2]
[407735805,1772721032021,-1855.58649284,0.00016797,2]
[407735806,1772721032031,-300.0,0.00016804,2]
[407735807,1772721032040,-1200.0,0.00016804,2]
[407735808,1772721032051,-300.0,0.00016804,2]
[407735809,1772721032061,-7183.64227265,0.00016805,2]
[407735810,1772721032073,-2822.57780245,0.00016805,2]
[407735811,1772721032089,-94695.5140249,0.00016805,2]
[407735812,1772721032098,-1590.59127086,0.0001683,2]
[407735813,1772721032108,-150.0,0.00016832,30]
[407735814,1772721032118,-882.405446,0.00016918,2]
[407735815,1772721032128,-8951.78020994,0.00016929,2]
[407735816,1772721032137,-4577.15933288,0.00016944,2]
[407735817,1772721032147,-2172.39819221,0.00016944,2]
[407735818,1772721032156,-788.88,0.00017016,2]
[407735819,1772721032166,-1036.32016175,0.00017028,5]
[407735820,1772721032175,-500.0,0.00017028,2]
[407735821,1772721032184,-612.83340899,0.00017028,2]
[407735822,1772721032193,-9718.9761795,0.00017029,2]
[407735823,1772721032202,-1206.2427722,0.00017029,2]
[407735824,1772721032211,-35022.38927904,0.00017029,2]
[407735825,1772721032223,-17860.62590122,0.00017029,2]
[407735826,1772721032235,-48073.35034721,0.00017029,2]
[407735827,1772721032245,-4123.31355821,0.00017029,2]
[407735919,1772721044761,-402.37,0.00017019,2]
[407735920,1772721044771,-402.37,0.00017019,2]
[407735921,1772721044782,-402.37,0.00017019,2]
[407735922,1772721044791,-1079.21016175,0.00017029,2]
[407735923,1772721044823,-171.6339,0.00017,2]
[407735924,1772721044832,-2006.30663036,0.00017029,2]
[407735925,1772721044940,-1527.99980761,0.00017029,2]
[407735926,1772721045001,-508.42963174,0.00017029,2]
[407735927,1772721045012,-1139.33803329,0.00017029,2]
[407735938,1772721045867,-171.6339,0.00017,2]
[407735940,1772721045876,-171.6339,0.00017,2]
[407735942,1772721045885,-11043.84242847,0.00017029,2]
[407735960,1772721053047,250.0,0.00015,2]
[407735961,1772721067582,157.0,0.00016289,2]
[407735962,1772721071236,152.0,0.00016289,2]
[407735968,1772721086725,1865.06,0.0001417,2]
[407735969,1772721150525,500.0,0.00012,2]
[407735970,1772721170539,172.64,0.00013476,2]
[407735973,1772721361759,509.0,0.00014,2]
[407735974,1772721373091,157.674214,0.00016178,7]
[407735976,1772721619407,244.67,0.00017,120]
[407735979,1772721745450,157.41,0.00016203,2]
[407735980,1772721767491,166.66,0.00015393,2]
[407735981,1772721767686,166.66,0.00015717,2]
[407735982,1772721767947,166.66,0.00016041,2]
[407735983,1772721782151,352.53355614,0.00016275,2]
[407735984,1772721791380,2650.77222986,0.000162,2]
[407735985,1772721791409,5000.01,0.000162,2]
[407735986,1772721791434,5000.01,0.000162,2]
[407735987,1772721791456,5000.01,0.000162,2]
[407735988,1772721791479,5000.01,0.000162,2]
[407735989,1772721791501,5000.01,0.000162,2]
[407735990,1772721791523,5000.01,0.000162,2]
[407735991,1772721791544,5000.01,0.000162,2]
[407735992,1772721791566,1651.15777015,0.000162,2]
[407735994,1772721822361,4803.0,0.000124,5]
[407735995,1772721910189,200.0,0.00016116,2]
[407735996,1772721917996,3240.0,0.00016116,2]
[407735999,1772721999633,105.85222985,0.00016289,2]
[407736000,1772721999660,6044.14777015,0.00016289,2]
[407736001,1772722109803,-207.0,0.00016289,2]
[407736002,1772722109827,-207.0,0.00016289,2]
[407736003,1772722109851,-157.0,0.00016289,2]
[407736004,1772722109879,-5000.0,0.00016292,2]
[407736005,1772722109903,-250.0,0.00016296,2]
[407736006,1772722109931,-773.38,0.00016302,2]
[407736007,1772722109956,-166.66,0.00016365,2]
[407736008,1772722109980,-1521.88,0.00016431,2]
[407736009,1772722110004,-1765.32040195,0.00016683,2]
[407736010,1772722110029,-166.66,0.00016689,2]
[407736011,1772722110053,-300.0,0.00016703,2]
[407736012,1772722110079,-1200.0,0.00016704,2]
[407736013,1772722110106,-300.0,0.00016704,2]
[407736014,1772722110135,-32985.09959805,0.00016705,2]
[407736019,1772722232158,-1200.0,0.00016704,2]
[407736020,1772722232168,-157.0,0.00016705,3]
[407736021,1772722232177,-212.0,0.00016705,3]
[407736022,1772722232186,-152.0,0.00016705,3]
[407736023,1772722232196,-289.41620819,0.00016705,2]
[407736024,1772722232206,-1032.59556341,0.0001673,2]
[407736025,1772722232215,-166.66,0.00016754,2]
[407736026,1772722232224,-221.57,0.0001679,2]
[407736027,1772722232234,-1000.0,0.00016867,2]
[407736028,1772722232245,-866.17,0.0001687,2]
[407736029,1772722232255,-6962.17812274,0.00016886,2]
[407736030,1772722232266,-969.80549567,0.00016886,2]
[407736031,1772722232277,-38207.9925339,0.00016886,2]
[407736032,1772722232289,-84953.24344904,0.00016886,2]
[407736033,1772722232299,-7408.33204665,0.00016886,2]
[407736075,1772722238240,-4097.00136119,0.00016886,2]
[407736076,1772722238305,-645.65236834,0.00016886,2]
[407736077,1772722238320,-6713.79183253,0.00016886,2]
[407736078,1772722238331,-4914.41977813,0.00016886,2]
[407736079,1772722238342,-3902.54095793,0.00016886,2]
[407736080,1772722238355,-502.76289236,0.00016886,2]
[407736086,1772722238409,-71999.99999999,0.00016886,2]
[407736088,1772722238420,-915.68180285,0.00016886,2]
[407736137,1772722240297,-1171.76511173,0.00016886,2]
[407736147,1772722243297,-49866.72860085,0.00016886,2]
[407736148,1772722243307,-4119.44339952,0.00016929,2]
[407736149,1772722243320,-150.0,0.00016951,2]
[407736150,1772722243329,-7915.34165441,0.00016978,2]
[407736151,1772722243361,-387.02996484,0.00016978,2]
[407736152,1772722243374,-226.84785055,0.00016978,2]
[407736153,1772722243383,-91.73636994,0.00016978,2]
[407736154,1772722243395,-226.84785066,0.00016978,2]
[407736155,1772722243404,-1058.14477226,0.00016978,2]
[407736156,1772722243414,-824.0,0.00016978,2]
[407736157,1772722243544,-852.14243312,0.00016978,2]
[407736171,1772722246014,-3632.39532,0.00016978,2]
[407736172,1772722246075,-922.54960922,0.00016978,2]
[407736173,1772722246084,-171.6339,0.00017,2]
[407736174,1772722246094,-171.6339,0.00017,2]
[407736175,1772722246103,-171.6339,0.00017,2]
[407736176,1772722246112,-936.45964534,0.00017,2]
[407736177,1772722246121,-1793.6,0.00017,2]
[407736178,1772722246131,-1630.23602728,0.00017,2]
[407736179,1772722246141,-1482.74276537,0.00017,2]
[407736180,1772722246150,-1931.8,0.00017,2]
[407736181,1772722246160,-151.3078191,0.00017012,2]
[407736182,1772722246169,-166.66,0.00017013,2]
[407736183,1772722246179,-200.0,0.00017029,2]
[407736184,1772722246188,-200.0,0.00017029,2]
[407736185,1772722246197,-200.0,0.00017029,2]
[407736186,1772722246207,-200.0,0.00017029,2]
[407736187,1772722246216,-200.0,0.00017029,2]
[407736188,1772722246226,-200.0,0.00017029,2]
[407736189,1772722246235,-200.0,0.00017029,2]
[407736190,1772722246245,-200.0,0.00017029,2]
[407736191,1772722246255,-200.0,0.00017029,2]
[407736192,1772722246265,-200.0,0.00017029,2]
[407736193,1772722246275,-200.0,0.00017029,2]
[407736194,1772722246284,-221.57,0.0001706,2]
[407736195,1772722246293,-555.0,0.00017126,2]